Workbook

Sheet INSTRUCTIONS
B2: INSTRUCTIONS
C3: Fill out each column, as it applies to each property.
C4: - Referrals to HRRA members must be deducted from the GCI or Units. GCI requires a monentary amount and units will be a portion of the unit.
D5: Example: The referal fee is 25%. GCI would be $250 of a $1000 GCI. Units would be .25 of 1 unit.
C6: - If you are submitting by GCI you do not need to fill out the Units columns (column K and M)
C7: - Provide Info Referrals and other income = Name of agent for referal or other property details
C10: MLS # | D10: Property Address | E10: Closed Date | F10: Final Sales Price | G10: TOTAL GCI | H10: LESS GCI Referral Amount | I10: PLUS Prop. Mgt. Income | J10: PLUS Other Misc. Inc. | K10: Adj. GCI | L10: Units | M10: O/G Ref. Units (.25) | N10: Are they a HRRA member? (Y/N) | O10: Team Member Associated with Transaction
C11: EXAMPLE | D11: 101 Home Address Lane, Chesapeake | E11: 2022-01-31 | F11: 100000 | G11: 3000 | H11: 200 | I11: 100 | J11: 100 | K11: =SUM(G11-H11+I11+J11) -> 3000 | L11: 1 | M11: 0.25
C14: GCI completes the grey and blue columns
C15: Units completes the grey and green columns
C16: TEAMS also completes the green column

Sheet 1-1000
A2: Property Data Form - Circle of Excellencesm | J2: NAME OF APPLICANT | O2: 2023 Awards Period
F5: Fill out if submitting by GCI | K5: Fill out if submitting by UNITS | O5: Fill out if Team Application
B6: MLS # | C6: Property Address | D6: Closed Date | E6: Final Sales Price | F6: TOTAL GCI | G6: LESS GCI Referral Amount | H6: PLUS Prop. Mgt. Income | I6: PLUS Other Misc. Inc. | J6: Adj. GCI | K6: Units | L6: O/G Ref. Units (.25) | M6: REFERRAL Are they a HRRA member? (Y/N) | N6: Name of Referral | O6: Team Member Associated with Transaction
B7: Example - MLS # | C7: 101 Home address Lane, Chesapeake | D7: 2022-01-31 | E7: 300000 | F7: 3000 | G7: 200 | H7: 100 | I7: 150 | J7: =F7-G7+H7+I7 -> 3050 | K7: 1 | L7: 0.25 | M7: Y
A8: 1 | J8: =SUM(F8-G8+H8+I8) -> 0
A9: =A8+1 -> 2 | J9: =SUM(F9-G9+H9+I9) -> 0
A10: =A9+1 -> 3 | J10: 0
A11: 4 | J11: 0
A12: 5 | J12: 0
A13: 6 | J13: 0
A14: 7 | J14: 0
A15: 8 | J15: 0
A16: 9 | J16: 0
A17: 10 | J17: 0
A18: 11 | J18: 0
A19: 12 | J19: 0
A20: 13 | J20: 0
A21: 14 | J21: 0
A22: 15 | J22: 0
A23: 16 | J23: 0
A24: 17 | J24: 0
A25: 18 | J25: 0
A26: 19 | J26: 0
A27: 20 | J27: 0
A28: 21 | J28: 0
A29: 22 | J29: 0
A30: 23 | J30: 0
A31: 24 | J31: 0
A32: 25 | J32: 0
A33: 26 | J33: 0
A34: 27 | J34: 0
A35: 28 | J35: 0
A36: 29 | J36: 0
A37: 30 | J37: 0
A38: 31 | J38: 0
A39: 32 | J39: 0
A40: 33 | J40: 0
A41: 34 | J41: 0
A42: 35 | J42: 0
A43: 36 | J43: 0
A44: 37 | J44: 0
A45: 38 | J45: 0
A46: 39 | J46: 0
A47: 40 | J47: 0
A48: 41 | J48: 0
A49: 42 | J49: 0
A50: 43 | J50: 0
A51: 44 | J51: 0
A52: 45 | J52: 0
A53: 46 | J53: 0
A54: 47 | J54: 0
A55: 48 | J55: 0
A56: 49 | J56: 0
A57: 50 | J57: 0
A58: 51 | J58: 0
A59: 52 | J59: 0
A60: 53 | J60: 0
A61: 54 | J61: 0
A62: 55 | J62: 0
A63: 56 | J63: 0
A64: 57 | J64: 0
A65: 58 | J65: 0
A66: 59 | J66: 0
A67: 60 | J67: 0
A68: 61 | J68: 0
A69: 62 | J69: 0
A70: 63 | J70: 0
A71: 64 | J71: 0
A72: 65 | J72: 0
A73: 66 | J73: =SUM(F73-G73+H73+I73) -> 0
A74: =A73+1 -> 67 | J74: 0
A75: 68 | J75: 0
A76: 69 | J76: 0
A77: 70 | J77: 0
A78: 71 | J78: 0
A79: 72 | J79: 0
A80: 73 | J80: 0
A81: 74 | J81: 0
A82: 75 | J82: 0
A83: 76 | J83: 0
A84: 77 | J84: 0
A85: 78 | J85: 0
A86: 79 | J86: 0
A87: 80 | J87: 0
A88: 81 | J88: 0
A89: 82 | J89: 0
A90: 83 | J90: 0
A91: 84 | J91: 0
A92: 85 | J92: 0
A93: 86 | J93: 0
A94: 87 | J94: 0
A95: 88 | J95: 0
A96: 89 | J96: 0
A97: 90 | J97: 0
A98: 91 | J98: 0
A99: 92 | J99: 0
A100: 93 | J100: 0
A101: 94 | J101: 0
A102: 95 | J102: 0
A103: 96 | J103: 0
A104: 97 | J104: 0
A105: 98 | J105: 0
A106: 99 | J106: 0
A107: 100 | J107: 0
A108: 101 | J108: 0
A109: 102 | J109: 0
A110: 103 | J110: 0
A111: 104 | J111: 0
A112: 105 | J112: 0
A113: 106 | J113: 0
A114: 107 | J114: 0
A115: 108 | J115: 0
A116: 109 | J116: 0
A117: 110 | J117: 0
A118: 111 | J118: 0
A119: 112 | J119: 0
A120: 113 | J120: 0
A121: 114 | J121: 0
A122: 115 | J122: 0
A123: 116 | J123: 0
A124: 117 | J124: 0
A125: 118 | J125: 0
A126: 119 | J126: 0
A127: 120 | J127: 0
A128: 121 | J128: 0
A129: 122 | J129: 0
A130: 123 | J130: 0
A131: 124 | J131: 0
A132: 125 | J132: 0
A133: 126 | J133: 0
A134: 127 | J134: 0
A135: 128 | J135: 0
A136: 129 | J136: 0
A137: 130 | J137: =SUM(F137-G137+H137+I137) -> 0
A138: =A137+1 -> 131 | J138: 0
A139: 132 | J139: 0
A140: 133 | J140: 0
A141: 134 | J141: 0
A142: 135 | J142: 0
A143: 136 | J143: 0
A144: 137 | J144: 0
A145: 138 | J145: 0
A146: 139 | J146: 0
A147: 140 | J147: 0
A148: 141 | J148: 0
A149: 142 | J149: 0
A150: 143 | J150: 0
A151: 144 | J151: 0
A152: 145 | J152: 0
A153: 146 | J153: 0
A154: 147 | J154: 0
A155: 148 | J155: 0
A156: 149 | J156: 0
A157: 150 | J157: 0
A158: 151 | J158: 0
A159: 152 | J159: 0
A160: 153 | J160: 0
A161: 154 | J161: 0
A162: 155 | J162: 0
A163: 156 | J163: 0
A164: 157 | J164: 0
A165: 158 | J165: 0
A166: 159 | J166: 0
A167: 160 | J167: 0
A168: 161 | J168: 0
A169: 162 | J169: 0
A170: 163 | J170: 0
A171: 164 | J171: 0
A172: 165 | J172: 0
A173: 166 | J173: 0
A174: 167 | J174: 0
A175: 168 | J175: 0
A176: 169 | J176: 0
A177: 170 | J177: 0
A178: 171 | J178: 0
A179: 172 | J179: 0
A180: 173 | J180: 0
A181: 174 | J181: 0
A182: 175 | J182: 0
A183: 176 | J183: 0
A184: 177 | J184: 0
A185: 178 | J185: 0
A186: 179 | J186: 0
A187: 180 | J187: 0
A188: 181 | J188: 0
A189: 182 | J189: 0
A190: 183 | J190: 0
A191: 184 | J191: 0
A192: 185 | J192: 0
A193: 186 | J193: 0
A194: 187 | J194: 0
A195: 188 | J195: 0
A196: 189 | J196: 0
A197: 190 | J197: 0
A198: 191 | J198: 0
A199: 192 | J199: 0
A200: 193 | J200: 0
A201: 194 | J201: =SUM(F201-G201+H201+I201) -> 0
A202: =A201+1 -> 195 | J202: 0
A203: 196 | J203: 0
... 805 more rows
